Workbook

Sheet ScreenCapture
B1: This is a Bloomberg screen that I exported to Excel.
B2: To get to the March 2014 10-year contract, I type TYH4 <CMDTY>
B3: and then I choose DLV (Cheapest to Deliver)
F4: <CMDTY> is the yellow F9 key on the Bloomberg keyboard.
B7: The screen shows all notes that are deliverable against the March 2014 10-year Treasury note futures contract.
B8: It presents them in order from the Cheapest-to-Deliver to the Dearest-to-Deliver.
B10: Note that the note prices, gross basis, and net basis are reported in 32nds.
A13: The US Treasury started issuing 7-year notes on a monthly basis in February 2009. Unlike 10- and 30-year notes, these mature on the last day of the month.
A14: --- Therefore in the table, any notes that mature on a 15th are 10-year notes, whereas those maturing on last days in the month are 7-year notes.
B15: TYH4
B16: US 10-Yr Note (CBT) Mar14
B18: Cash Security | C18: Price | D18: Source | E18: Conven. Yield | F18: Conver. Factor | G18: Gro/Bas (32nds) | H18: Implied Repo% | I18: Actual Repo% | J18: Net/Bas (32nds)
B19: Adjust Value | K19: delmoy | L19: matmoy | M19: cpn | N19: Conversion Factor from the user-defined function
A20: 1) | B20: T 2.625 11/15/20 | C20: 102-21 | D20: BGN | E20: 2.203 | F20: 0.8205 | G20: 16.128 | H20: -0.056 | I20: 0.072 | J20: 0.8 | K20: 32014 | L20: 112020 | M20: 0.02625 | N20: =ConvFctr(M20,K20,L20) -> 0.8205351287
A21: 2) | B21: T 3.625 02/15/21 | C21: 108-31 | D21: BGN | E21: 2.245 | F21: 0.8697 | G21: 22.115 | H21: -0.068 | I21: 0.072 | J21: 0.929 | K21: 32014 | L21: 22021 | M21: 0.03625 | N21: =ConvFctr(M21,K21,L21) -> 0.8696885436
A22: 3) | B22: T 2 11/30/20 | C22: 98-13.25 | D22: BGN | E22: 2.251 | F22: 0.7873 | G22: 12.647 | H22: -0.116 | I22: 0.072 | J22: 1.122 | K22: 32014 | L22: 112020 | M22: 0.02 | N22: 0.7873008933
A23: 4) | B23: T 1.75 10/31/20 | C23: 96-31.25 | D23: BGN | E23: 2.233 | F23: 0.774 | G23: 19.634 | H23: -1.549 | I23: 0.072 | J23: 9.54 | K23: 32014 | L23: 102020 | M23: 0.0175 | N23: 0.7740071992
A24: 5) | B24: T 2 09/30/20 | C24: 98-23.75 | D24: BGN | E24: 2.203 | F24: 0.7873 | G24: 23.147 | H24: -1.863 | I24: 0.072 | J24: 11.625 | K24: 32014
A25: 6) | B25: T 3.125 05/15/21 | C25: 105-11+ | D25: BGN | E25: 2.323 | F25: 0.8376 | G25: 34.502 | H25: -2.454 | I25: 0.072 | J25: 16.18 | K25: 32014
A26: 7) | B26: T 2.375 12/31/20 | C26: 100-23.25 | D26: BGN | E26: 2.261 | F26: 0.8012 | G26: 31.269 | H26: -2.787 | I26: 0.072 | J26: 17.434 | K26: 32014
A27: 8) | B27: T 2.125 08/15/21 | C27: 98-01.25 | D27: BGN | E27: 2.41 | F27: 0.7748 | G27: 50.447 | H27: -6.354 | I27: 0.072 | J27: 38.176 | K27: 32014
A28: 9) | B28: T 2 11/15/21 | C28: 96-21.25 | D28: BGN | E28: 2.472 | F28: 0.7612 | G28: 60.629 | H28: -8.287 | I28: 0.072 | J28: 49.031 | K28: 32014
A29: 10) | B29: T 2 02/15/22 | C29: 96-03.25 | D29: BGN | E29: 2.537 | F29: 0.7549 | G29: 67.728 | H29: -9.58 | I29: 0.072 | J29: 56.197 | K29: 32014
A30: 11) | B30: T 1.75 05/15/22 | C30: 93-22.75 | D30: BGN | E30: 2.596 | F30: 0.7331 | G30: 78.08 | H30: -11.886 | I30: 0.072 | J30: 67.971 | K30: 32014
A31: 12) | B31: T 1.625 08/15/22 | C31: 92-06 | D31: BGN | E31: 2.65 | F31: 0.7185 | G31: 87.496 | H31: -13.932 | I31: 0.072 | J31: 78.188 | K31: 32014
A32: 13) | B32: T 1.625 11/15/22 | C32: 91-20.25 | D32: BGN | E32: 2.698 | F32: 0.712 | G32: 95.642 | H32: -15.453 | I32: 0.072 | J32: 86.276 | K32: 32014
A33: 14) | B33: T 2 02/15/23 | C33: 94-06.75 | D33: BGN | E33: 2.725 | F33: 0.7307 | G33: 103.641 | H33: -16.063 | I33: 0.072 | J33: 92.101 | K33: 32014
A34: 15) | B34: T 2.5 08/15/23 | C34: 97-18.75 | D34: BGN | E34: 2.789 | F34: 0.7542 | G34: 118.017 | H34: -17.425 | I34: 0.072 | J34: 103.504 | K34: 32014
A35: 16) | B35: T 2.75 11/15/23 | C35: 99-12.75 | D35: BGN | E35: 2.82 | F35: 0.7672 | G35: 124.225 | H35: -17.832 | I35: 0.072 | J35: 108.132 | K35: 32014
A36: 17) | B36: T 1.75 05/15/23 | C36: 91-19.75 | D36: BGN | E36: 2.778 | F36: 0.7077 | G36: 112.273 | H36: -18.309 | I36: 0.072 | J36: 102.156 | K36: 32014
B39: Settle: | C39: 2014-01-22
B40: First del date: | C40: 2014-03-03
B41: Last del date: | C41: 2014-03-31
A44: The T-Note is identified by the issuer (T), coupon rate, and maturity date.
A45: The data source BGN refers to Bloomberg generic.
A46: The conven. yield is the ``conventional yield'' (to maturity) of the note.

Sheet ConvFact
A1: This worksheet shows the computation of the various cells on the Bloomberg DLV screen.
A5: 0.02625 | C5: 2014-03-01 | D5: Contract | E5: 201403 | F5: 3 | G5: 2014 | H5: 32014
A6: 2020-11-15 | B6: 6 | C6: n | D6: number of whole years from first day of delivery month to note's maturity date.
A7: 202011 | B7: 6 | C7: z | D7: number of whole months between n and note's maturity date rounded down to nearest quarter.
A8: 11 | C8: v | D8: = z | E8: if z < 7 | K8: =RIGHT(A10,4) -> 2020
A9: 2020 | B9: 6 | D9: 3 | E9: if z >= 7 | K9: =A10-K8 -> 110000
A10: 112020 | C10: a | D10: =1/1.03^(B9/6) -> 0.9708737864 | K10: =K9/10000 -> 11
A11: =ConvFctr(A5,H5,A10) -> 0.8205351287 | C11: b | D11: =(A5/2)*(6-B9)/6 -> 0
B12: 0.8205351287 | C12: c | D12: =1/1.03^(2*B6) -> 0.7013798802
C13: d | D13: =(A5/0.06)*(1-D12) -> 0.1306463024 | F13: 2014-01-22
A15: Conversion Factor: | B15: =D10*(0.5*A5+D12+D13)-D11 -> 0.8205351287 | C15: (Computed directly from the spreadsheet).
B16: 0.8205351287 | C16: (Using VBA Macro-- Subroutine CF() )
A18: Since there are many notes that are eligible to be delivered against the futures contract, the exchange uses a conversion factor to
A19: put these notes on a more equal footing. The idea behind the conversion factor is that we want to know what the note's price
A20: would be on the first delivery date, if its yield to maturity were 6%. Obviously, 6% is much higher than this note's ytm, so the
A21: conversion factor is less than 1.
A24: Note Price: | B24: 102.21 | C24: (Remember note prices are usually quoted in 32nds)
A25: $ Price | B25: =+DOLLARDE(B24,32) -> 102.65625 | C25: Note yield: | D25: =YIELD(F13,A6,A5,B25,100,2,1) -> 0.0220267926 | E25: This is the note's yield-to-maturity.
A28: Futures Price: | B28: 124.16 | C28: --in 32nds
B29: =+DOLLARDE(B28,32) -> 124.5 | C29: -- in $
A30: Times CF = | B30: =B15*B29 -> 102.1566235 | C30: the futures contract is settled by delivering a specific note.
C31: ----the buyer pays the seller the futures price times the conversion factor on that note.
A33: Gross Basis: | B33: =B25-B30 -> 0.4996264711 | C33: The gross basis is simply the note's clean price minus the futures price-adjusted by the conversion factor for the note.
A34: ---- in 32nds: | B34: =B33*32 -> 15.98804708
A36: Basis Trade:
A37: If we buy the note now and sell it using the futures contract:
A38: AI: | B38: =D40*D41 -> 0.4930939227 | C38: Last Int Pmt: | D38: 2013-11-15 | F38: Settle: | G38: 2014-01-22
C39: Next Int Pmt: | D39: 2014-05-15
C40: $ amt: | D40: =A5/2*100 -> 1.3125
C41: Prop due: | D41: =(G38-D38)/(D39-D38) -> 0.3756906077
A43: Cash Outlay (and amt we have to finance): | E43: =B25+B38 -> 103.1493439 | F43: This is the note's dirty (or cash) price.
A46: Last Delivery Date: | C46: 2014-03-31 | G46: =C46-G38 -> 68 | H46: day holding period
A47: Clean Selling price: | C47: =B30 -> 102.1566235
A48: AI: | C48: =(C46-D38)/(D39-D38)*D40 -> 0.9861878453
A49: Total Cash Inflow: | C49: =C47+C48 -> 103.1428114
A51: Implied repo rate: | C51: =C49/E43 -> 0.999936669
C52: =C51^(365/(C46-G38)) -> 0.9996601087
C53: =C52-1 -> -0.0003398913067 | D53: The implied repo rate is that rate which we would earn on our repo position to make the two sides of the
D54: transaction exactly equal.
A55: Actual Repo Rate: | C55: 0.00072
A57: Net Basis:
B58: Sell Short: | C58: =E43 -> 103.1493439
B59: Repo: | C59: =C55*(G46/360)*C58 -> 0.01402831077
B61: Purchase: | C61: =C49 -> 103.1428114
B63: Net Basis: | C63: =C58+C59-C61 -> 0.02056085922 | D63: The net basis is the cash flow consequence of selling the note short, and buying it back on the last delivery date as a long trader
B64: -- in 32nds: | C64: =C63*32 -> 0.6579474952 | D64: (Ticks) | E64: in the futures market.
D66: If the net basis is positive, then the implied repo rate will be negative.
D68: The cheapest to deliver is that note that has the lowest net basis.
D69: The cost of delivering the second CTD is simply the difference between that note's
D70: net basis, and the CTD's net basis.
D71: In this instance, there is virtually no cost difference to the short position between delivering
D72: any of the first three notes on the screen.
A75: Situation on Feb 2, 2017:
B76: Futures Price | C76: 124-11
B77: In % of par terms: | D77: =124+11/32 -> 124.34375
B79: CTD: | C79: 2.75% | D79: 2023-11-15 | E79: 103-06 3/4 | F79: =103+6.75/32 -> 103.2109375
B81: Conversion Factor: | D81: 0.8272
B83: Forward analysis:
B84: Settlement: | C84: 2017-02-03
B85: Last Cpn | C85: 2016-11-15
B86: Next Coupon | C86: 2017-05-15
B87: Forward Date: | C87: 2017-03-31
B88: Last Del Dt: | C88: 2017-03-31
B89: AI: | C89: =C79*50*(C84-C85)/(C86-C85) -> 0.6077348066
B90: Note Dirty Price: | D90: =F79+C89 -> 103.8186723
B91: AI on forward date: | D91: =C79*50*(C87-C85)/(C86-C85) -> 1.033149171
B93: Repo to 3/31/17: | D93: 0.62%
B95: Forward Price: | D95: =D90*(1+D93*(C87-C84)/360)-D91 -> 102.884843
B97: Implied Futures Price: | D97: =D95/D81 -> 124.377228 | F97: Implied Repo rate: | H97: =((D77*D81+D91)/D90-1)*360/(C87-C84) -> 0.004435217725
B103: Example using the on-the-run 10-year note:
C104: 2% | D104: 2026-11-15 | E104: 95-30 1/4 | F104: =95+30.25/32 -> 95.9453125
B106: Conversion Factor: | D106: 0.7135
B108: Forward analysis:
B109: Settlement: | C109: 2017-02-03
B110: Last Cpn | C110: 2016-11-15
B111: Next Coupon | C111: 2017-05-15
B112: Forward Date: | C112: 2017-03-31
B113: Last Del Dt: | C113: 2017-03-31
B114: AI: | C114: =C104*50*(C109-C110)/(C111-C110) -> 0.4419889503
B115: Note Dirty Price: | D115: =F104+C114 -> 96.38730145
B116: AI on forward date: | D116: =C104*50*(C112-C110)/(C111-C110) -> 0.7513812155
B118: Repo to 3/31/17: | D118: 0.62%
B120: Forward Price: | D120: =D115*(1+D118*(C112-C109)/360)-D116 -> 95.72813075
B122: Implied Futures Price: | D122: =D120/D106 -> 134.1669667 | F122: Implied Repo rate: | H122: =((D77*D106+D116)/D115-1)*360/(C112-C109) -> -0.4613077401
